Workbook

Sheet Tableau 27
A1: Tableau 27 : Répartition des effectifs par corps et catégorie
C3: 2016 | E3: 2017 | G3: 2018 | I3: 2019
A4: Statut | B4: Catégorie | C4: PP | D4: ETPT | E4: PP | F4: ETPT | G4: PP | H4: ETPT | I4: PP | J4: ETPT
A5: Personnels État | B5: A | C5: 426 | D5: 408.8 | E5: 428 | F5: 415.7 | G5: 438 | H5: 427.9 | I5: 437 | J5: 425.2848333
B6: B | C6: 424 | D6: 408.3 | E6: 449 | F6: 415.4 | G6: 442 | H6: 422.7 | I6: 449 | J6: 420.0931667
B7: C | C7: 639 | D7: 621 | E7: 643 | F7: 602.7 | G7: 636 | H7: 619 | I7: 617 | J7: 609.74525
B8: Total | C8: =SUM(C5:C7) -> 1489 | D8: 1438.1 | E8: 1520 | F8: 1433.8 | G8: 1516 | H8: 1469.6 | I8: =SUM(I5:I7) -> 1503 | J8: =SUM(J5:J7) -> 1455.12325
A9: Personnels non-titulaires | B9: A | C9: 409 | D9: 404 | E9: 415 | F9: 400 | G9: 411 | H9: 404.7 | I9: 421 | J9: 400.1781667
B10: B | C10: 203 | D10: 186 | E10: 200 | F10: 192.4 | G10: 165 | H10: 171 | I10: 176 | J10: 159.77525
B11: C | C11: 13 | D11: 10.34 | E11: 21 | F11: 20.7 | G11: 12 | H11: 15 | I11: 14 | J11: 11.7615
B12: EA* | C12: 1 | D12: 3.3 | F12: 0.3
B13: Total | C13: =SUM(C9:C12) -> 626 | D13: =SUM(D9:D12) -> 603.64 | E13: 636 | F13: =SUM(F9:F12) -> 613.4 | G13: =SUM(G9:G12) -> 588 | H13: =SUM(H9:H12) -> 590.7 | I13: =SUM(I9:I12) -> 611 | J13: =SUM(J9:J12) -> 571.7149167
A14: Personnels non-titulaires à temps incomplet | C14: 225 | D14: 145 | E14: 203 | F14: 148.6 | G14: 167 | H14: 127.3 | I14: 181 | J14: 120.7906667
A15: Total | C15: =C14+C13+C8 -> 2340 | D15: =D8+D13+D14 -> 2186.74 | E15: =E14+E13+E8 -> 2359 | F15: =F8+F13+F14 -> 2195.8 | G15: =G14+G13+G8 -> 2271 | H15: =H8+H13+H14 -> 2187.6 | I15: =I8+I13+I14 -> 2295 | J15: =J8+J13+J14 -> 2147.628833
A17: *Emplois d’avenir
A18: PP = personnes physiques (chiffres au 31/2)
A19: ETPT = équivalent temps plein annuel travaillé (moyenne annuelle)
